bitfinex/quotes_BTCUSD_20250518
["timestamp","ask_amount","ask_price","bid_price","bid_amount"]
[1747576413392,0.51908299,104330.0,104320.0,0.00910926]
[1747576414484,0.20130349,104320.0,104310.0,1.96226668]
[1747576414714,0.40620802,104320.0,104310.0,1.96226668]
[1747576415546,0.40720802,104320.0,104310.0,1.96226668]
[1747576415737,0.50451742,104320.0,104310.0,1.96226668]
[1747576415943,0.66232195,104320.0,104310.0,1.96226668]
[1747576416165,0.50451742,104320.0,104310.0,1.96226668]
[1747576416421,0.66232195,104320.0,104310.0,1.9509]
[1747576417784,0.50451742,104320.0,104310.0,1.9509]
[1747576418191,0.66232195,104320.0,104310.0,1.9509]
[1747576421783,0.66132195,104320.0,104310.0,1.9509]
[1747576422196,0.66132195,104320.0,104310.0,1.78414589]
[1747576422409,0.66232195,104320.0,104310.0,1.78414589]
[1747576422612,0.66532195,104320.0,104310.0,1.78414589]
[1747576422822,0.34971289,104320.0,104310.0,1.78414589]
[1747576423032,0.66532195,104320.0,104310.0,1.78414589]
[1747576426681,0.53743289,104320.0,104310.0,1.78414589]
[1747576426896,0.69523742,104320.0,104310.0,1.78414589]
[1747576427322,0.85304195,104320.0,104310.0,1.78414589]
[1747576427530,0.53739289,104320.0,104310.0,1.78414589]
[1747576427737,0.34971289,104320.0,104310.0,1.78414589]
[1747576429851,0.59020159,104320.0,104310.0,1.78414589]
[1747576430596,0.59020159,104320.0,104310.0,1.58886749]
[1747576434726,0.59020159,104320.0,104310.0,1.78060366]
[1747576434727,0.2619891,104320.0,104310.0,1.78060366]
[1747576434944,0.2619891,104320.0,104310.0,1.58886749]
[1747576436214,0.2393891,104320.0,104310.0,1.58886749]
[1747576436888,0.2611891,104320.0,104310.0,1.58886749]
[1747576442532,0.2611891,104320.0,104310.0,1.59796242]
[1747576442737,0.2611891,104320.0,104310.0,1.60754922]
[1747576442949,0.2611891,104320.0,104310.0,1.59796242]
[1747576448302,0.2611891,104320.0,104310.0,1.58886749]
[1747576451919,0.41898158,104320.0,104310.0,1.58886749]
[1747576453599,0.51629098,104320.0,104310.0,1.58886749]
[1747576456184,0.67408346,104320.0,104310.0,1.58886749]
[1747576459677,0.78636487,104320.0,104310.0,1.58886749]
[1747576460704,0.97396487,104320.0,104310.0,1.58886749]
[1747576461821,0.9868489,104320.0,104310.0,1.58886749]
[1747576465242,0.74630253,104320.0,104310.0,1.58886749]
[1747576465449,0.6119289,104320.0,104310.0,1.58886749]
[1747576466290,0.7991689,104320.0,104310.0,1.58886749]
[1747576466536,0.78628487,104320.0,104310.0,1.58886749]
[1747576466740,0.59904487,104320.0,104310.0,1.58886749]
[1747576471226,0.61188042,104320.0,104310.0,1.58886749]
[1747576471679,0.59904487,104320.0,104310.0,1.58886749]
[1747576476748,0.83959124,104320.0,104310.0,1.58886749]
[1747576476969,0.59904487,104320.0,104310.0,1.58886749]
[1747576478099,1.21869501,104320.0,104310.0,1.58886749]
[1747576478756,1.21569501,104320.0,104310.0,1.58886749]
[1747576479165,1.22169501,104320.0,104310.0,1.58986749]
[1747576479778,1.22069501,104320.0,104310.0,1.58986749]
[1747576479979,1.22469501,104320.0,104310.0,1.58986749]
[1747576481265,0.98414864,104320.0,104310.0,1.58986749]
[1747576481512,0.61958572,104320.0,104310.0,1.58986749]
[1747576481744,0.60504487,104320.0,104310.0,1.58986749]
[1747576481979,0.3644985,104320.0,104310.0,1.58986749]
[1747576482183,0.3181985,104320.0,104310.0,1.58986749]
[1747576482384,0.3405985,104320.0,104310.0,1.58986749]
[1747576482836,0.58114487,104320.0,104310.0,1.58986749]
[1747576483027,0.60494487,104320.0,104310.0,1.58986749]
[1747576483423,0.84549124,104320.0,104310.0,1.58986749]
[1747576483564,0.86003209,104320.0,104310.0,1.58986749]
[1747576484473,0.61948572,104320.0,104310.0,1.58986749]
[1747576484767,0.86003209,104320.0,104310.0,1.58986749]
[1747576484970,1.21003209,104320.0,104310.0,1.58986749]
[1747576485171,1.30734149,104320.0,104310.0,1.58986749]
[1747576485413,1.21003209,104320.0,104310.0,1.58986749]
[1747576486906,1.22446379,104320.0,104310.0,1.58986749]
[1747576487294,1.19792079,104320.0,104310.0,1.58986749]
[1747576487487,1.16103742,104320.0,104310.0,1.58986749]
[1747576487683,0.98391742,104320.0,104310.0,1.58986749]
[1747576487899,1.35827742,104320.0,104310.0,1.58986749]
[1747576488101,1.34827742,104320.0,104310.0,1.58986749]
[1747576488715,1.35827742,104320.0,104310.0,1.58986749]
[1747576488928,1.34827742,104320.0,104310.0,1.58986749]
[1747576491532,1.16119742,104320.0,104310.0,1.58986749]
[1747576491718,1.34827742,104320.0,104310.0,1.58986749]
[1747576492719,0.7043985,104320.0,104310.0,1.58986749]
[1747576492916,1.31930487,104320.0,104310.0,1.58986749]
[1747576493133,1.33384572,104320.0,104310.0,1.58986749]
[1747576494522,0.95948572,104320.0,104310.0,1.58986749]
[1747576494771,1.33384572,104320.0,104310.0,1.58986749]
[1747576495585,1.33356572,104320.0,104310.0,1.58986749]
[1747576498302,1.14652572,104320.0,104310.0,1.58986749]
[1747576498514,1.33356572,104320.0,104310.0,1.58986749]
[1747576501112,1.09301935,104320.0,104310.0,1.58986749]
[1747576501316,1.33356572,104320.0,104310.0,1.58986749]
[1747576501521,1.34802344,104320.0,104310.0,1.58986749]
[1747576503228,0.97394344,104320.0,104310.0,1.58986749]
[1747576503448,1.34798344,104320.0,104310.0,1.58986749]
[1747576503637,0.97394344,104320.0,104310.0,1.58986749]
[1747576503844,1.34798344,104320.0,104310.0,1.58986749]
[1747576506691,1.10743707,104320.0,104310.0,1.58986749]
[1747576506843,1.34798344,104320.0,104310.0,1.58986749]
[1747576508563,1.34794344,104320.0,104310.0,1.58986749]
[1747576508765,0.58114487,104320.0,104310.0,1.58986749]
[1747576508991,0.55874487,104320.0,104310.0,1.58986749]
[1747576509808,0.55756262,104320.0,104310.0,1.58986749]
[1747576510588,0.55520389,104320.0,104310.0,1.58986749]
[1747576511170,0.74224389,104320.0,104310.0,1.58986749]
[1747576512991,0.74224389,104320.0,104310.0,1.63446749]
[1747576513588,0.31465752,104320.0,104310.0,1.63446749]
[1747576514103,0.22088873,104320.0,104310.0,1.83579028]
[1747576514315,0.04834243,104320.0,104310.0,1.85496306]
[1747576514528,0.24006022,104320.0,104310.0,1.63446749]
[1747576514755,0.22088928,104320.0,104310.0,1.64405429]
[1747576514964,0.21688928,104320.0,104310.0,1.8549637]
[1747576515168,0.21888928,104320.0,104310.0,1.8549637]
[1747576515369,0.21888928,104320.0,104310.0,1.86406018]
[1747576515602,0.21888928,104320.0,104310.0,1.87364662]
[1747576515782,0.21288928,104320.0,104310.0,1.87264662]
[1747576516012,0.21588928,104320.0,104310.0,1.87364662]
[1747576516447,0.21588928,104320.0,104310.0,1.87264662]
[1747576516629,0.21088928,104320.0,104310.0,1.87264662]
[1747576516862,0.002,104320.0,104310.0,1.87264662]
[1747576517070,0.02117048,104320.0,104310.0,2.09223278]
[1747576517282,0.01158515,104320.0,104310.0,2.09223278]
[1747576517481,0.002,104320.0,104310.0,2.09223278]
[1747576517703,0.003,104320.0,104310.0,2.09223278]
[1747576518104,0.0221703,104320.0,104310.0,2.09223278]
[1747576518493,0.0221703,104320.0,104310.0,2.18954218]
[1747576518697,0.0221703,104320.0,104310.0,1.97954218]
[1747576520652,0.03175573,104320.0,104310.0,1.97954218]
[1747576520831,0.23305922,104320.0,104310.0,1.96995602]
[1747576521089,0.23305922,104320.0,104310.0,1.85347365]
[1747576521282,0.21388892,104320.0,104310.0,1.86306027]
[1747576521488,0.21388892,104320.0,104310.0,1.87264671]
[1747576521765,0.21388892,104320.0,104310.0,1.84388694]
[1747576522123,0.21388892,104320.0,104310.0,1.85347365]
[1747576522124,0.20430349,104320.0,104310.0,1.85347365]
[1747576522921,0.20430349,104320.0,104310.0,1.86306027]
[1747576523840,0.20430349,104320.0,104310.0,1.85396379]
[1747576524740,0.20430349,104320.0,104310.0,1.84437717]
[1747576525150,0.30161289,104320.0,104310.0,1.58886749]
[1747576525383,0.54215926,104320.0,104310.0,1.58886749]
[1747576525551,0.20430349,104320.0,104310.0,1.58886749]
[1747576526975,0.20430349,104320.0,104310.0,1.61306749]
[1747576527184,0.20430349,104320.0,104310.0,1.63566749]
[1747576528803,0.20430349,104320.0,104310.0,1.39120857]
[1747576530531,0.02217058,104320.0,104310.0,1.61170386]
[1747576530745,0.03175619,104320.0,104310.0,1.61170386]
[1747576530944,0.02217058,104320.0,104310.0,2.32522386]
[1747576531343,0.003,104320.0,104310.0,2.42253326]
[1747576531960,0.01258515,104320.0,104310.0,2.63253326]
[1747576532193,0.02217039,104320.0,104310.0,2.63253326]
[1747576532801,0.003,104320.0,104310.0,2.64160557]
[1747576533386,0.01258506,104320.0,104310.0,2.64160557]
[1747576533928,0.003,104320.0,104310.0,2.64160557]
[1747576536422,0.02217058,104320.0,104310.0,2.45484557]
[1747576536621,0.02217058,104320.0,104310.0,2.64156557]
[1747576536856,0.02217048,104320.0,104310.0,2.64156557]
[1747576537064,0.01258515,104320.0,104310.0,2.64156557]
[1747576537991,0.003,104320.0,104310.0,2.64156557]
[1747576538790,0.003,104320.0,104310.0,2.64327093]
[1747576539003,0.001,104320.0,104310.0,2.64327093]
[1747576539202,0.001,104320.0,104310.0,2.64427093]
[1747576539409,0.03075306,104330.0,104320.0,0.56047434]
[1747576539673,0.03075306,104330.0,104320.0,0.70518374]
[1747576541010,0.03075306,104330.0,104320.0,0.71425605]
[1747576541682,0.03075306,104330.0,104320.0,0.71625605]
[1747576543090,0.002,104330.0,104320.0,0.71625605]
[1747576544221,0.002,104330.0,104320.0,1.13035605]
[1747576544423,0.002,104330.0,104320.0,1.13251806]
[1747576545270,0.002,104350.0,104340.0,0.60783208]
[1747576545486,0.002,104350.0,104340.0,4.17815449]
[1747576545691,0.002,104350.0,104340.0,4.20269534]
[1747576545980,0.002,104370.0,104360.0,0.87493068]
[1747576546113,0.002,104370.0,104360.0,4.49059608]
[1747576546540,0.002,104370.0,104360.0,4.48107022]
[1747576546747,0.002,104370.0,104360.0,4.49107022]
[1747576546974,0.002,104370.0,104360.0,4.10739022]
[1747576547187,0.002,104370.0,104360.0,2.03441022]
[1747576547590,0.002,104370.0,104360.0,0.7061018]
[1747576547822,0.21278788,104370.0,104360.0,0.00133488]
[1747576548025,0.21278788,104370.0,104360.0,0.2025613]
[1747576548260,0.21278788,104370.0,104360.0,0.00133488]
[1747576548473,0.25888788,104370.0,104360.0,0.00133488]
[1747576549168,0.49943425,104370.0,104360.0,0.00433488]
[1747576549384,0.49943425,104370.0,104360.0,0.00133488]
[1747576549856,0.49943425,104370.0,104360.0,0.00233488]
[1747576550079,0.35619728,104370.0,104360.0,0.00233488]
[1747576550545,0.25888788,104370.0,104360.0,0.00233488]
[1747576550770,0.21278788,104370.0,104360.0,0.011917]
[1747576551221,0.21278788,104370.0,104360.0,0.00233488]
[1747576551438,0.20320705,104370.0,104360.0,0.00233488]
[1747576552050,0.22236917,104370.0,104360.0,0.2035613]
[1747576552301,0.21278834,104370.0,104360.0,0.00233488]
[1747576553679,0.002,104370.0,104360.0,0.40118314]
[1747576553866,0.22236844,104370.0,104360.0,0.50807429]
[1747576554151,0.22236844,104370.0,104360.0,0.51765595]
[1747576554377,0.22236835,104370.0,104360.0,0.51765595]
[1747576554621,0.22236835,104370.0,104360.0,0.50807429]
[1747576554870,0.002,104370.0,104360.0,0.56585586]
[1747576555083,0.01158047,104370.0,104360.0,0.56585586]
[1747576555303,0.002,104370.0,104360.0,0.56585586]
[1747576555804,0.002,104370.0,104360.0,0.57489184]
[1747576556053,0.002,104370.0,104360.0,0.91489184]
[1747576557205,0.002,104370.0,104360.0,0.92943269]
[1747576557445,0.002,104370.0,104360.0,1.80719069]
[1747576557934,0.002,104370.0,104360.0,1.81850213]
[1747576558601,0.002,104370.0,104360.0,0.68996328]
[1747576558826,0.002,104370.0,104360.0,1.06508328]
[1747576559057,0.002,104370.0,104360.0,0.68996328]
[1747576559281,0.01158056,104370.0,104360.0,0.68996328]
[1747576559706,0.01158056,104370.0,104360.0,0.87760328]
[1747576559935,0.002,104370.0,104360.0,1.06504328]
[1747576561687,0.002,104370.0,104360.0,1.05373184]
[1747576562125,0.002,104370.0,104360.0,1.07803184]
[1747576562567,0.002,104370.0,104360.0,1.05373184]
[1747576562794,0.04032325,104370.0,104360.0,1.0633135]
[1747576563018,0.23788834,104370.0,104360.0,0.01137086]
[1747576563280,0.26228834,104370.0,104360.0,0.01137086]
[1747576564682,0.26228834,104370.0,104360.0,0.00233488]
[1747576565330,0.60014411,104370.0,104360.0,0.00233488]
[1747576566142,0.35959774,104370.0,104360.0,0.00233488]
[1747576566556,0.60014411,104370.0,104360.0,0.00233488]
[1747576567512,0.60014411,104370.0,104360.0,0.00147414]
[1747576568310,0.84069048,104370.0,104360.0,0.00147414]
[1747576568812,1.21729048,104370.0,104360.0,0.00147414]
[1747576569193,1.21729048,104370.0,104360.0,0.00047414]
[1747576569638,0.98074411,104370.0,104360.0,0.00147414]
[1747576570561,0.98374411,104370.0,104360.0,0.00147414]
[1747576572227,0.74319774,104370.0,104360.0,0.00147414]
[1747576572432,0.98374411,104370.0,104360.0,0.00147414]
[1747576573174,0.36659774,104370.0,104360.0,0.00147414]
[1747576575076,0.60714411,104370.0,104360.0,0.00147414]
[1747576575286,0.86223133,104370.0,104360.0,0.00147414]
[1747576575441,0.62168496,104370.0,104360.0,0.00147414]
[1747576576180,0.60714411,104370.0,104360.0,0.00147414]
[1747576576445,0.36659774,104370.0,104360.0,0.00147414]
[1747576576649,0.60714411,104370.0,104360.0,0.00147414]
[1747576583779,0.84769048,104370.0,104360.0,0.00147414]
[1747576584246,0.86223133,104370.0,104360.0,0.00147414]
[1747576584928,0.62168496,104370.0,104360.0,0.00147414]
[1747576585371,0.99896496,104370.0,104360.0,0.00147414]
[1747576589599,0.36659774,104370.0,104360.0,0.00147414]
[1747576590712,0.31709774,104370.0,104360.0,0.00147414]
[1747576591137,0.009,104370.0,104360.0,0.26546397]
[1747576591348,0.03774241,104370.0,104360.0,0.26546397]
[1747576591610,0.03774241,104370.0,104360.0,0.27453623]
[1747576591817,0.04732352,104370.0,104360.0,0.27453623]
[1747576592017,0.0377425,104370.0,104360.0,0.27453623]
[1747576592211,0.03774214,104370.0,104360.0,0.37184563]
[1747576592518,0.04732334,104370.0,104360.0,0.37184563]
[1747576592959,0.03774214,104370.0,104360.0,0.37184563]
[1747576593161,0.03374214,104370.0,104360.0,0.43084563]
[1747576593369,0.23194919,104370.0,104360.0,0.0531464]
[1747576593545,0.21278798,104370.0,104360.0,0.0095464]
[1747576594617,0.20320705,104370.0,104360.0,0.0095464]
[1747576594822,0.01158111,104370.0,104360.0,0.22993623]
[1747576595033,0.01158056,104370.0,104360.0,0.27573623]
[1747576595240,0.01158056,104370.0,104360.0,0.37304563]
[1747576595387,0.02116139,104370.0,104360.0,0.37304563]
[1747576595587,0.03074214,104370.0,104360.0,0.37304563]
[1747576595788,0.02116121,104370.0,104360.0,0.37304563]
[1747576595995,0.04032288,104370.0,104360.0,0.37304563]
[1747576596611,0.04032288,104370.0,104360.0,0.37504563]
[1747576596823,0.04032288,104370.0,104360.0,0.37704563]
[1747576597228,0.03074195,104370.0,104360.0,0.37704563]
[1747576597434,0.04032288,104370.0,104360.0,0.37704563]
[1747576599700,0.02116121,104370.0,104360.0,0.37704563]
[1747576599909,0.01158056,104370.0,104360.0,0.37704563]
[1747576600063,0.01158047,104370.0,104360.0,0.37704563]
[1747576601012,0.02116112,104370.0,104360.0,0.37704563]
[1747576601164,0.01158047,104370.0,104360.0,0.37704563]
[1747576601810,0.02116112,104370.0,104360.0,0.37704563]
[1747576602008,0.231949,104370.0,104360.0,0.36746406]
[1747576602248,0.231949,104370.0,104360.0,0.1108558]
[1747576602249,0.21278788,104370.0,104360.0,0.1108558]
[1747576602408,0.21278788,104370.0,104360.0,0.13002004]
[1747576602604,0.21278788,104370.0,104360.0,0.32166434]
[1747576602860,0.21278788,104370.0,104360.0,0.3504095]
[1747576602861,0.22236908,104370.0,104360.0,0.3504095]
[1747576603219,0.21278788,104370.0,104360.0,0.4104095]
[1747576603848,0.02116139,104370.0,104360.0,0.4104095]
[1747576604051,0.0307425,104370.0,104360.0,0.4104095]
[1747576605210,0.002,104370.0,104360.0,0.4559095]
[1747576606132,0.002,104370.0,104360.0,0.46722094]
[1747576606339,0.002,104370.0,104360.0,0.65610094]
[1747576606975,0.002,104370.0,104360.0,0.84526094]
[1747576608772,0.01158056,104370.0,104360.0,0.65638094]
[1747576608977,0.01158056,104370.0,104360.0,0.84494094]
[1747576609891,0.01158056,104370.0,104360.0,0.8336295]
[1747576610540,0.002,104370.0,104360.0,0.8336295]
[1747576610647,0.002,104370.0,104360.0,1.8877295]
[1747576611845,0.002,104370.0,104360.0,1.4736295]
[1747576612909,0.002,104370.0,104360.0,1.48871142]
[1747576613929,0.00957964,104380.0,104370.0,0.60656872]
[1747576614300,0.00957964,104380.0,104370.0,0.70387812]
[1747576614919,0.23190726,104390.0,104380.0,0.21076769]
[1747576615120,0.23190726,104390.0,104380.0,0.55076769]
[1747576615341,0.23190726,104390.0,104380.0,0.56034751]
[1747576616528,0.23290726,104390.0,104380.0,0.53160758]
[1747576616734,0.21574899,104390.0,104380.0,0.54118795]
[1747576616937,0.23904899,104390.0,104380.0,0.56034815]
[1747576617166,0.23904899,104390.0,104380.0,0.56942041]
[1747576618531,0.26224899,104390.0,104380.0,0.56942041]
[1747576619421,0.26224899,104390.0,104380.0,0.57900023]
[1747576619846,0.26224899,104390.0,104380.0,0.56942041]
[1747576620007,0.26224899,104390.0,104380.0,0.57900033]
[1747576620410,0.21574899,104390.0,104380.0,0.57900033]
[1747576620929,0.21574899,104390.0,104380.0,0.56942041]
[1747576621130,0.23904899,104390.0,104380.0,0.56942041]
[1747576621780,0.26224899,104390.0,104380.0,0.56942041]
[1747576623206,0.26224899,104390.0,104380.0,0.5694205]
[1747576623831,0.26224899,104390.0,104380.0,0.5598404]
[1747576624037,0.25266972,104390.0,104380.0,0.5598404]
[1747576625476,0.25166972,104390.0,104380.0,0.5598404]
[1747576625696,0.24966972,104390.0,104380.0,0.5598404]
[1747576625917,0.24666972,104390.0,104380.0,0.5598404]
[1747576627250,0.24666972,104390.0,104380.0,0.34907226]
[1747576627523,0.24666972,104390.0,104380.0,0.35865263]
[1747576627837,0.47763663,104390.0,104380.0,0.00907226]
[1747576630946,0.24758777,104380.0,104370.0,0.3415]
[1747576632110,0.25596787,104380.0,104370.0,0.36216433]
[1747576632320,0.0464,104380.0,104370.0,0.54420898]
[1747576632565,0.01915974,104380.0,104370.0,0.57495148]
[1747576632761,0.03831985,104380.0,104370.0,0.56537092]
[1747576632980,0.04789958,104380.0,104370.0,0.57495166]
[1747576633381,0.03831939,104380.0,104370.0,0.58453231]
[1747576633742,0.04789958,104380.0,104370.0,0.62853231]
[1747576633941,0.03831939,104380.0,104370.0,0.62853231]
[1747576634164,0.04789958,104380.0,104370.0,0.62853231]
[1747576634510,0.04789958,104380.0,104370.0,0.60623231]
[1747576634713,0.04789958,104380.0,104370.0,0.58453231]
[1747576634913,0.04789958,104380.0,104370.0,0.64453231]
[1747576635345,0.04790031,104380.0,104370.0,0.63495166]
[1747576635512,0.27542816,104380.0,104370.0,0.63495185]
[1747576636165,0.22992816,104380.0,104370.0,0.64453259]
[1747576636515,0.22492816,104380.0,104370.0,0.65585982]
[1747576636761,0.22492816,104380.0,104370.0,0.63669825]
[1747576637174,0.22492816,104380.0,104370.0,0.64627908]
[1747576637626,0.24652816,104380.0,104370.0,0.63669825]
[1747576638068,0.24652816,104380.0,104370.0,0.64627899]
[1747576638280,0.24652816,104380.0,104370.0,0.64627908]
[1747576638779,0.24652816,104380.0,104370.0,0.61753621]
[1747576639006,0.25984824,104380.0,104370.0,0.63669852]
[1747576639422,0.25984824,104380.0,104370.0,0.62537129]
[1747576642169,0.25984824,104380.0,104370.0,0.61579018]
[1747576643280,0.24568795,104380.0,104370.0,0.41458304]
[1747576644722,0.24568795,104380.0,104370.0,0.60620898]
[1747576644923,0.24568795,104380.0,104370.0,0.62537147]
[1747576645127,0.24568795,104380.0,104370.0,0.63495258]
[1747576646159,0.24568795,104380.0,104370.0,0.41458304]
[1747576646731,0.24568795,104380.0,104370.0,0.42416433]
[1747576646947,0.24568795,104380.0,104370.0,0.43374553]
[1747576647180,0.24568795,104380.0,104370.0,0.37374553]
[1747576649525,0.24568795,104380.0,104370.0,0.56537147]
[1747576650102,0.01915992,104380.0,104370.0,0.58453241]
[1747576650308,0.02873947,104380.0,104370.0,0.57495194]
[1747576650530,0.01915937,104380.0,104370.0,0.64453259]
[1747576650735,0.02873938,104380.0,104370.0,0.68913259]
[1747576650933,0.03831957,104380.0,104370.0,0.68913259]
[1747576651136,0.03831957,104380.0,104370.0,0.64453259]
[1747576651969,0.03831957,104380.0,104370.0,0.66703259]
[1747576652346,0.03831957,104380.0,104370.0,0.65585982]
[1747576653125,0.27362715,104380.0,104370.0,0.64627936]
[1747576653339,0.27362715,104380.0,104370.0,0.65586019]
[1747576654297,0.27362715,104380.0,104370.0,0.66544093]
[1747576656128,0.2640476,104380.0,104370.0,0.64627936]
[1747576656544,0.02873966,104380.0,104370.0,0.65586001]
[1747576656764,0.04789967,104380.0,104370.0,0.64627936]
[1747576656976,0.04789967,104380.0,104370.0,0.65586001]
[1747576658027,0.07019967,104380.0,104370.0,0.65586001]
[1747576658206,0.07020049,104380.0,104370.0,0.65586001]
[1747576659566,0.07020049,104380.0,104370.0,0.65586019]
[1747576659781,0.25222834,104380.0,104370.0,0.65586019]
[1747576659948,0.27402834,104380.0,104370.0,0.64627936]
[1747576660314,0.27402834,104380.0,104370.0,0.65586019]
[1747576661054,0.25222834,104380.0,104370.0,0.65586019]
[1747576661868,0.22992834,104380.0,104370.0,0.66544093]
[1747576662083,0.22992834,104380.0,104370.0,0.65586019]
[1747576662322,0.24466962,104390.0,104380.0,0.20118777]
[1747576662524,0.24202817,104390.0,104380.0,0.54118777]
[1747576663494,0.24202817,104390.0,104380.0,0.57117814]
[1747576664746,0.24202817,104390.0,104380.0,0.58075815]
[1747576664958,0.24202817,104390.0,104380.0,0.59033807]
[1747576665157,0.07423507,104400.0,104390.0,0.55074787]
[1747576665296,0.26580595,104400.0,104390.0,0.55074787]
[1747576665496,0.0455,104400.0,104390.0,0.56990577]
[1747576665729,0.08650883,104410.0,104400.0,0.55072732]
[1747576665956,0.01157698,104410.0,104400.0,0.56988321]
[1747576666163,0.02115405,104410.0,104400.0,0.75664321]
[1747576666372,0.0307314,104410.0,104400.0,0.75664321]
[1747576666586,0.0307314,104410.0,104400.0,0.72790933]
[1747576666587,0.24598439,104410.0,104400.0,0.72790933]
[1747576666787,0.26848439,104410.0,104400.0,0.74754009]
[1747576667000,0.25890732,104410.0,104400.0,0.56028477]
[1747576667236,0.25890732,104410.0,104400.0,0.58119017]
[1747576667450,0.25890732,104410.0,104400.0,0.59076825]
[1747576667849,0.25890732,104410.0,104400.0,0.61175178]
[1747576668520,0.26090732,104410.0,104400.0,0.61175178]
[1747576668883,0.25890732,104410.0,104400.0,0.61175178]
[1747576669686,0.25890732,104410.0,104400.0,0.60217379]
[1747576670315,0.25890732,104410.0,104400.0,0.59084656]
[1747576670559,0.26848485,104410.0,104400.0,0.60042455]
[1747576670782,0.27806247,104410.0,104400.0,0.60042455]
[1747576671223,0.25556247,104410.0,104400.0,0.60042455]
[1747576671432,0.0115768,104410.0,104400.0,0.600424]
[1747576671864,0.0115768,104410.0,104400.0,0.645424]
[1747576672078,0.02115369,104410.0,104400.0,0.645424]
[1747576672292,0.0115768,104410.0,104400.0,0.645424]
[1747576672752,0.02115378,104410.0,104400.0,0.645424]
[1747576672973,0.002,104410.0,104400.0,0.7427334]
[1747576674030,0.002,104410.0,104400.0,0.75727425]
[1747576674697,0.002,104410.0,104400.0,0.7427334]
[1747576675164,0.02115423,104410.0,104400.0,0.7577334]
[1747576675375,0.002,104410.0,104400.0,1.1311334]
[1747576675996,0.01157689,104410.0,104400.0,1.1311334]
[1747576676182,0.0115768,104410.0,104400.0,1.1311334]
[1747576676386,0.002,104410.0,104400.0,1.14246063]
[1747576677084,0.002,104410.0,104400.0,1.18856063]
[1747576681031,0.002,104410.0,104400.0,1.20310148]
[1747576681651,0.002,104410.0,104400.0,1.61720148]
[1747576681859,0.002,104410.0,104400.0,1.60266063]
[1747576682796,0.002,104410.0,104400.0,2.41700748]
[1747576683009,0.002,104410.0,104400.0,2.32085848]
[1747576683229,0.002,104410.0,104400.0,2.50753848]
[1747576684338,0.002,104410.0,104400.0,2.48849648]
[1747576684563,0.002,104410.0,104400.0,2.59437148]
[1747576684786,0.003,104410.0,104400.0,2.59837148]
[1747576685508,0.00208,104410.0,104400.0,2.59837148]
[1747576685729,0.00208,104410.0,104400.0,3.34768148]
[1747576686160,0.00208,104410.0,104400.0,3.67639948]
[1747576686406,0.00208,104410.0,104400.0,3.68639948]
[1747576687059,0.00108,104410.0,104400.0,3.68239948]
[1747576687285,0.00100001,104410.0,104400.0,3.67107225]
[1747576687577,0.002,104430.0,104420.0,0.91950404]
[1747576687792,0.002,104430.0,104420.0,4.72397544]
[1747576688698,0.002,104430.0,104420.0,4.56568744]
[1747576688932,0.002,104430.0,104420.0,5.06142266]
[1747576689183,0.002,104430.0,104420.0,5.09313466]
[1747576689415,0.002,104430.0,104420.0,5.77493466]
[1747576689641,0.002,104450.0,104440.0,0.91412102]
[1747576689868,0.002,104450.0,104440.0,3.63723942]
[1747576690594,0.002,104450.0,104440.0,2.91313942]
[1747576690843,0.002,104450.0,104440.0,1.61630427]
[1747576691103,0.002,104450.0,104440.0,1.61697841]
[1747576691797,0.002,104450.0,104440.0,1.62697841]
[1747576692052,0.002,104450.0,104440.0,1.81141363]
[1747576692301,0.002,104450.0,104440.0,1.71061363]
[1747576692518,0.00188278,104450.0,104440.0,1.72489727]
[1747576692771,0.00188278,104450.0,104440.0,1.75184141]
[1747576693012,0.00188278,104450.0,104440.0,1.83107262]
[1747576695207,0.00188278,104450.0,104440.0,1.45691262]
[1747576695471,0.00188278,104450.0,104440.0,1.77533727]
[1747576695680,0.002,104470.0,104460.0,0.91407886]
[1747576695926,0.00085076,104470.0,104460.0,5.66727711]
[1747576696160,0.00085076,104470.0,104460.0,5.72345246]
[1747576696362,0.002,104490.0,104480.0,0.92857755]
[1747576696603,3.12536101,104500.0,104490.0,0.57465649]
[1747576696840,0.03562305,104510.0,104500.0,0.88963542]
[1747576697061,0.0178268,104530.0,104520.0,0.88959331]
[1747576697062,0.0158268,104530.0,104520.0,0.88959331]
[1747576697282,0.02006653,104580.0,104570.0,0.68303326]
[1747576697504,0.19324115,104580.0,104570.0,0.1942]
[1747576697758,0.25658492,104570.0,104560.0,0.34]
[1747576698031,0.19324322,104580.0,104560.0,0.46869575]
[1747576698238,0.19324322,104580.0,104560.0,0.37138635]
[1747576698239,0.23308473,104570.0,104560.0,0.37138635]
[1747576698447,0.24264761,104570.0,104560.0,0.34]
[1747576698653,0.22352168,104570.0,104560.0,0.65]
[1747576698852,0.19125944,104570.0,104560.0,1.05139566]
[1747576699053,0.22550463,104580.0,104560.0,1.06095899]
[1747576699275,0.22550463,104580.0,104570.0,0.01117675]
[1747576699276,0.43006454,104580.0,104570.0,0.01117675]
[1747576699490,0.002,104580.0,104570.0,0.29974559]
[1747576699705,0.23506462,104580.0,104570.0,0.44848615]
[1747576699925,0.0247,104580.0,104570.0,0.85078559]
[1747576700171,0.26783819,104610.0,104570.0,0.85078559]
[1747576700172,0.07658205,104610.0,104570.0,2.71294192]
[1747576700392,0.07658205,104610.0,104600.0,0.55988415]
[1747576700616,0.07658205,104610.0,104600.0,1.9274114]
[1747576700827,0.07658205,104610.0,104600.0,2.3194114]
[1747576701042,0.07658205,104610.0,104600.0,2.32245985]
[1747576701697,0.06038336,104610.0,104600.0,2.32293399]
[1747576701946,0.06038336,104610.0,104600.0,2.53773399]
[1747576702176,0.06038336,104610.0,104600.0,2.56185921]
[1747576702389,0.035099,104610.0,104600.0,3.07360901]
[1747576702605,0.035099,104610.0,104600.0,2.77360901]
[1747576702822,0.035099,104610.0,104600.0,1.80022401]
[1747576702823,0.24540274,104610.0,104600.0,1.80022401]
[1747576703033,0.080999,104610.0,104600.0,1.64339563]
[1747576703245,0.080999,104610.0,104600.0,0.89863101]
[1747576703246,0.23708631,104610.0,104600.0,0.89863101]
[1747576703459,0.0228,104610.0,104600.0,1.84249334]
[1747576703671,0.0228,104610.0,104600.0,1.8520532]
[1747576703897,0.0228,104610.0,104600.0,1.4688622]
[1747576704104,0.0439,104610.0,104600.0,1.2045522]
[1747576704282,0.0439,104610.0,104600.0,1.18951002]
[1747576704500,0.0449,104610.0,104600.0,1.18951002]
[1747576704759,0.05445858,104610.0,104600.0,1.18951002]
[1747576705015,0.0238,104610.0,104600.0,1.40387002]
[1747576705533,0.0449,104610.0,104600.0,1.40387002]
[1747576705775,0.0449,104610.0,104600.0,1.6511992]
[1747576706432,0.0449,104610.0,104600.0,1.2359992]
[1747576706851,0.28544637,104610.0,104600.0,0.7216392]
[1747576707058,0.0449,104610.0,104600.0,0.7216392]
[1747576707280,0.05445867,104610.0,104600.0,0.3889492]
[1747576707512,0.0449,104610.0,104600.0,0.39998694]